[Event "Titled Tuesday Blitz May 23 Late 2023"]
[White "Chakravarthi Reddy, M"]
[Black "Buchenau, Frank"]
[WhiteFideId "25009532"]
[BlackFideId "4604350"]
[WhiteElo "2201"]
[BlackElo "2157"]
[Result "0-1"]
[Round "11"]
[TimeControl "180+2"]
[Date "2023.05.23"]
[WhiteClock "0:00:04"]
[BlackClock "0:00:28"]

1. e4 {[%clk 0:03:00]}  e6 {[%clk 0:02:59]} 2. d4 {[%clk 0:03:00]}  d5 {[%clk 0:02:59]} 3. e5 {[%clk 0:03:01]}  c5 {[%clk 0:02:59]} 4. c3 {[%clk 0:03:02]}  Qb6 {[%clk 0:02:59]} 5. Nf3 {[%clk 0:03:02]}  Bd7 {[%clk 0:02:59]} 6. Be2 {[%clk 0:02:54]}  cxd4 {[%clk 0:02:58]} 7. cxd4 {[%clk 0:02:53]}  Bb5 {[%clk 0:02:57]} 8. O-O {[%clk 0:02:50]}  Bxe2 {[%clk 0:02:57]} 9. Qxe2 {[%clk 0:02:51]}  Nc6 {[%clk 0:02:57]} 10. Nc3 {[%clk 0:02:51]}  Nge7 {[%clk 0:02:52]} 11. Rd1 {[%clk 0:02:42]}  Nf5 {[%clk 0:02:50]} 12. g4 {[%clk 0:02:43]}  Nfxd4 {[%clk 0:02:48]} 13. Nxd4 {[%clk 0:02:43]}  Nxd4 {[%clk 0:02:48]} 14. Rxd4 {[%clk 0:02:41]}  Qxd4 {[%clk 0:02:47]} 15. Qb5+ {[%clk 0:02:41]}  Kd8 {[%clk 0:02:34]} 16. h3 {[%clk 0:02:14]}  Qb6 {[%clk 0:02:24]} 17. Qe2 {[%clk 0:02:07]}  Be7 {[%clk 0:02:17]} 18. Be3 {[%clk 0:02:05]}  Qb4 {[%clk 0:02:06]} 19. Rd1 {[%clk 0:01:57]}  Rc8 {[%clk 0:02:02]} 20. Qf3 {[%clk 0:01:40]}  Ke8 {[%clk 0:01:57]} 21. Qe2 {[%clk 0:01:21]}  Qc4 {[%clk 0:01:52]} 22. Qf3 {[%clk 0:01:21]}  Bc5 {[%clk 0:01:41]} 23. Bg5 {[%clk 0:01:03]}  h6 {[%clk 0:01:35]} 24. Bd2 {[%clk 0:00:58]}  Bd4 {[%clk 0:01:22]} 25. Rc1 {[%clk 0:00:54]}  Rc6 {[%clk 0:01:01]} 26. Ne2 {[%clk 0:00:44]}  Qa4 {[%clk 0:00:59]} 27. Rxc6 {[%clk 0:00:44]}  bxc6 {[%clk 0:00:54]} 28. b3 {[%clk 0:00:44]}  Qxa2 {[%clk 0:00:48]} 29. Nxd4 {[%clk 0:00:36]}  Qxd2 {[%clk 0:00:48]} 30. Kg2 {[%clk 0:00:31]}  h5 {[%clk 0:00:39]} 31. Nxc6 {[%clk 0:00:29]}  hxg4 {[%clk 0:00:37]} 32. Qxg4 {[%clk 0:00:16]}  Rh6 {[%clk 0:00:35]} 33. Kh2 {[%clk 0:00:12]}  Rg6 {[%clk 0:00:32]} 34. Qf3 {[%clk 0:00:04]}  Qc1 {[%clk 0:00:28]} 0-1


[Site "https://www.chess.com"]

[Event "Titled Tuesday Blitz May 23 Late 2023"]
[White "Qiao, Cindy"]
[Black "Shapiro, Viktor"]
[WhiteFideId "2620243"]
[BlackFideId "4175700"]
[WhiteElo "1777"]
[BlackElo "2152"]
[Result "1/2-1/2"]
[Round "11"]
[TimeControl "180+2"]
[Date "2023.05.23"]
[WhiteClock "0:00:09"]
[BlackClock "0:00:16"]

1. d4 {[%clk 0:03:00]}  Nf6 {[%clk 0:02:59]} 2. Bf4 {[%clk 0:03:01]}  g6 {[%clk 0:02:58]} 3. Nc3 {[%clk 0:03:00]}  Bg7 {[%clk 0:02:59]} 4. e4 {[%clk 0:03:01]}  d6 {[%clk 0:02:59]} 5. Qd2 {[%clk 0:03:01]}  h6 {[%clk 0:02:56]} 6. h4 {[%clk 0:02:58]}  a6 {[%clk 0:02:56]} 7. O-O-O {[%clk 0:02:52]}  b5 {[%clk 0:02:57]} 8. f3 {[%clk 0:02:52]}  Nbd7 {[%clk 0:02:51]} 9. e5 {[%clk 0:02:49]}  Nh5 {[%clk 0:02:35]} 10. e6 {[%clk 0:02:45]}  fxe6 {[%clk 0:02:31]} 11. Bd3 {[%clk 0:02:31]}  Nf8 {[%clk 0:02:24]} 12. g4 {[%clk 0:02:27]}  Nxf4 {[%clk 0:02:24]} 13. Qxf4 {[%clk 0:02:28]}  Bb7 {[%clk 0:02:20]} 14. Nge2 {[%clk 0:02:22]}  Qd7 {[%clk 0:02:19]} 15. Qe3 {[%clk 0:02:06]}  O-O-O {[%clk 0:02:14]} 16. Rde1 {[%clk 0:01:58]}  Kb8 {[%clk 0:02:13]} 17. Nf4 {[%clk 0:01:57]}  e5 {[%clk 0:02:09]} 18. dxe5 {[%clk 0:01:55]}  Bxe5 {[%clk 0:02:09]} 19. Nxg6 {[%clk 0:01:52]}  Bxc3 {[%clk 0:02:02]} 20. bxc3 {[%clk 0:01:50]}  Nxg6 {[%clk 0:02:02]} 21. Bxg6 {[%clk 0:01:50]}  e5 {[%clk 0:02:02]} 22. Be4 {[%clk 0:01:44]}  Qf7 {[%clk 0:01:56]} 23. Kb2 {[%clk 0:01:42]}  d5 {[%clk 0:01:47]} 24. Bf5 {[%clk 0:01:41]}  Rde8 {[%clk 0:01:40]} 25. Qc5 {[%clk 0:01:32]}  Qf6 {[%clk 0:01:32]} 26. h5 {[%clk 0:01:01]}  d4 {[%clk 0:01:21]} 27. cxd4 {[%clk 0:00:57]}  exd4 {[%clk 0:01:20]} 28. Rxe8+ {[%clk 0:00:21]}  Rxe8 {[%clk 0:01:20]} 29. Bd3 {[%clk 0:00:20]}  Bxf3 {[%clk 0:01:07]} 30. Rf1 {[%clk 0:00:20]}  Re3 {[%clk 0:01:07]} 31. Qd5 {[%clk 0:00:16]}  c6 {[%clk 0:00:37]} 32. Qc5 {[%clk 0:00:09]}  Kb7 {[%clk 0:00:36]} 33. a4 {[%clk 0:00:08]}  bxa4 {[%clk 0:00:21]} 34. Qb4+ {[%clk 0:00:08]}  Kc7 {[%clk 0:00:21]} 35. Qxa4 {[%clk 0:00:07]}  c5 {[%clk 0:00:18]} 36. Qc4 {[%clk 0:00:07]}  Qb6+ {[%clk 0:00:17]} 37. Ka3 {[%clk 0:00:04]}  Qa5+ {[%clk 0:00:17]} 38. Kb2 {[%clk 0:00:03]}  Qb4+ {[%clk 0:00:15]} 39. Qxb4 {[%clk 0:00:03]}  cxb4 {[%clk 0:00:16]} 40. Kb3 {[%clk 0:00:04]}  a5 {[%clk 0:00:16]} 41. Kc4 {[%clk 0:00:02]}  Bxg4 {[%clk 0:00:16]} 42. Kxd4 {[%clk 0:00:02]}  Re7 {[%clk 0:00:16]} 43. Rf6 {[%clk 0:00:02]}  Bxh5 {[%clk 0:00:16]} 44. Rxh6 {[%clk 0:00:02]}  Be2 {[%clk 0:00:16]} 45. Ra6 {[%clk 0:00:03]}  Bxd3 {[%clk 0:00:15]} 46. Kxd3 {[%clk 0:00:04]}  Re5 {[%clk 0:00:14]} 47. Kd4 {[%clk 0:00:04]}  Rh5 {[%clk 0:00:13]} 48. Kc4 {[%clk 0:00:05]}  Kb7 {[%clk 0:00:14]} 49. Rf6 {[%clk 0:00:04]}  Rh2 {[%clk 0:00:13]} 50. Kb3 {[%clk 0:00:05]}  Rh3+ {[%clk 0:00:13]} 51. Ka4 {[%clk 0:00:05]}  Ra3+ {[%clk 0:00:13]} 52. Kb5 {[%clk 0:00:06]}  b3 {[%clk 0:00:13]} 53. cxb3 {[%clk 0:00:05]}  Rxb3+ {[%clk 0:00:13]} 54. Kxa5 {[%clk 0:00:06]}  Rb2 {[%clk 0:00:13]} 55. Rf7+ {[%clk 0:00:06]}  Kc6 {[%clk 0:00:13]} 56. Rf6+ {[%clk 0:00:07]}  Kc5 {[%clk 0:00:14]} 57. Rf5+ {[%clk 0:00:08]}  Kc6 {[%clk 0:00:14]} 58. Rf6+ {[%clk 0:00:08]}  Kc5 {[%clk 0:00:15]} 59. Rf5+ {[%clk 0:00:09]}  Kc6 {[%clk 0:00:16]} 60. Rf6+ {[%clk 0:00:09]} 1/2-1/2


[Site "https://www.chess.com"]

[Event "Titled Tuesday Blitz May 23 Late 2023"]
[White "Schuster, Karsten"]
[Black "Melian, Juan Sebastian"]
[WhiteFideId "4611071"]
[BlackFideId "3706575"]
[WhiteElo "2254"]
[BlackElo "2092"]
[Result "0-1"]
[Round "11"]
[TimeControl "180+2"]
[Date "2023.05.23"]
[WhiteClock "0:00:40"]
[BlackClock "0:00:05"]

1. d4 {[%clk 0:03:00]}  Nf6 {[%clk 0:02:48]} 2. c4 {[%clk 0:03:00]}  e6 {[%clk 0:02:48]} 3. Nc3 {[%clk 0:03:00]}  Bb4 {[%clk 0:02:49]} 4. Qc2 {[%clk 0:03:00]}  c5 {[%clk 0:02:49]} 5. dxc5 {[%clk 0:03:00]}  Qc7 {[%clk 0:02:50]} 6. Nf3 {[%clk 0:02:59]}  a6 {[%clk 0:02:49]} 7. a3 {[%clk 0:02:59]}  Bxc5 {[%clk 0:02:49]} 8. Bg5 {[%clk 0:02:56]}  Be7 {[%clk 0:02:48]} 9. e3 {[%clk 0:02:53]}  d6 {[%clk 0:02:49]} 10. Bd3 {[%clk 0:02:53]}  Nbd7 {[%clk 0:02:47]} 11. b4 {[%clk 0:02:50]}  b6 {[%clk 0:02:41]} 12. O-O {[%clk 0:02:49]}  Bb7 {[%clk 0:02:41]} 13. Rac1 {[%clk 0:02:46]}  h6 {[%clk 0:02:42]} 14. Bh4 {[%clk 0:02:46]}  O-O {[%clk 0:02:43]} 15. Ne4 {[%clk 0:02:44]}  Rfe8 {[%clk 0:02:38]} 16. Bg3 {[%clk 0:02:37]}  Rac8 {[%clk 0:02:30]} 17. Rfd1 {[%clk 0:02:32]}  Nxe4 {[%clk 0:02:08]} 18. Bxe4 {[%clk 0:02:32]}  Bxe4 {[%clk 0:02:07]} 19. Qxe4 {[%clk 0:02:31]}  Nf6 {[%clk 0:02:08]} 20. Qd3 {[%clk 0:02:29]}  e5 {[%clk 0:02:08]} 21. Qb1 {[%clk 0:02:25]}  Qb7 {[%clk 0:02:06]} 22. Nd2 {[%clk 0:02:16]}  b5 {[%clk 0:02:01]} 23. f3 {[%clk 0:02:10]}  Rc7 {[%clk 0:01:39]} 24. cxb5 {[%clk 0:02:06]}  axb5 {[%clk 0:01:37]} 25. Rxc7 {[%clk 0:02:05]}  Qxc7 {[%clk 0:01:38]} 26. e4 {[%clk 0:02:04]}  Qa7+ {[%clk 0:01:33]} 27. Bf2 {[%clk 0:02:01]}  Qxa3 {[%clk 0:01:34]} 28. Nf1 {[%clk 0:01:57]}  Rc8 {[%clk 0:01:30]} 29. Qd3 {[%clk 0:01:54]}  Qxd3 {[%clk 0:01:26]} 30. Rxd3 {[%clk 0:01:53]}  Rc1 {[%clk 0:01:23]} 31. g4 {[%clk 0:01:38]}  Rb1 {[%clk 0:01:22]} 32. Kg2 {[%clk 0:01:36]}  Rxb4 {[%clk 0:01:22]} 33. Ne3 {[%clk 0:01:34]}  Rb2 {[%clk 0:01:20]} 34. Nf5 {[%clk 0:01:33]}  Bf8 {[%clk 0:00:48]} 35. Nxd6 {[%clk 0:01:30]}  Nd7 {[%clk 0:00:48]} 36. Rd5 {[%clk 0:01:26]}  b4 {[%clk 0:00:32]} 37. Nc4 {[%clk 0:01:24]}  Rc2 {[%clk 0:00:32]} 38. Rxd7 {[%clk 0:01:06]}  Rxc4 {[%clk 0:00:32]} 39. Rb7 {[%clk 0:01:06]}  f6 {[%clk 0:00:24]} 40. Kg3 {[%clk 0:01:06]}  Kh7 {[%clk 0:00:17]} 41. h4 {[%clk 0:01:06]}  Rc2 {[%clk 0:00:14]} 42. h5 {[%clk 0:01:05]}  Rc3 {[%clk 0:00:13]} 43. Be1 {[%clk 0:01:03]}  Rc4 {[%clk 0:00:13]} 44. Kg2 {[%clk 0:01:01]}  Bc5 {[%clk 0:00:13]} 45. Rb5 {[%clk 0:00:56]}  Rc2+ {[%clk 0:00:12]} 46. Kg3 {[%clk 0:00:56]}  Rc1 {[%clk 0:00:08]} 47. Bxb4 {[%clk 0:00:53]}  Bd4 {[%clk 0:00:05]} 48. Bf8 {[%clk 0:00:50]}  Rc7 {[%clk 0:00:05]} 49. Rb8 {[%clk 0:00:45]}  Be3 {[%clk 0:00:03]} 50. Kg2 {[%clk 0:00:44]}  Rc2+ {[%clk 0:00:04]} 51. Kg3 {[%clk 0:00:44]}  Bf4+ {[%clk 0:00:04]} 52. Kh3 {[%clk 0:00:40]}  Rh2# {[%clk 0:00:05]} 0-1


[Site "https://www.chess.com"]

[Event "Titled Tuesday Blitz May 23 Late 2023"]
[White "Weinstein, Joshua Ross"]
[Black "Remolar Gallen, Jose"]
[WhiteFideId "30927714"]
[BlackFideId "2215187"]
[WhiteElo "2337"]
[BlackElo "2223"]
[Result "0-1"]
[Round "11"]
[TimeControl "180+2"]
[Date "2023.05.23"]
[WhiteClock "0:00:25"]
[BlackClock "0:00:31"]

1. e4 {[%clk 0:03:00]}  c5 {[%clk 0:02:59]} 2. Nc3 {[%clk 0:03:01]}  d6 {[%clk 0:02:58]} 3. Bc4 {[%clk 0:03:01]}  Nf6 {[%clk 0:02:57]} 4. f4 {[%clk 0:03:02]}  e6 {[%clk 0:02:55]} 5. d3 {[%clk 0:03:01]}  Be7 {[%clk 0:02:55]} 6. Bb3 {[%clk 0:03:00]}  Nc6 {[%clk 0:02:55]} 7. Nf3 {[%clk 0:03:01]}  O-O {[%clk 0:02:55]} 8. O-O {[%clk 0:03:01]}  d5 {[%clk 0:02:48]} 9. e5 {[%clk 0:03:01]}  Ne8 {[%clk 0:02:48]} 10. Ne2 {[%clk 0:03:00]}  g6 {[%clk 0:02:47]} 11. c3 {[%clk 0:03:01]}  Ng7 {[%clk 0:02:43]} 12. g4 {[%clk 0:02:53]}  f6 {[%clk 0:02:40]} 13. exf6 {[%clk 0:02:53]}  Bxf6 {[%clk 0:02:40]} 14. Ng3 {[%clk 0:02:53]}  b5 {[%clk 0:02:34]} 15. Qe2 {[%clk 0:02:51]}  a5 {[%clk 0:02:24]} 16. Be3 {[%clk 0:02:47]}  a4 {[%clk 0:02:19]} 17. Bc2 {[%clk 0:02:44]}  Qd6 {[%clk 0:02:00]} 18. d4 {[%clk 0:02:30]}  cxd4 {[%clk 0:01:54]} 19. Nxd4 {[%clk 0:02:28]}  Nxd4 {[%clk 0:01:46]} 20. cxd4 {[%clk 0:02:24]}  b4 {[%clk 0:01:46]} 21. Bd3 {[%clk 0:02:13]}  Bd7 {[%clk 0:01:41]} 22. Kh1 {[%clk 0:02:03]}  Rac8 {[%clk 0:01:30]} 23. f5 {[%clk 0:01:55]}  gxf5 {[%clk 0:01:16]} 24. gxf5 {[%clk 0:01:54]}  exf5 {[%clk 0:00:56]} 25. Nxf5 {[%clk 0:01:31]}  Nxf5 {[%clk 0:00:51]} 26. Bxf5 {[%clk 0:01:30]}  Rce8 {[%clk 0:00:45]} 27. Qg4+ {[%clk 0:01:24]}  Kh8 {[%clk 0:00:42]} 28. Bh6 {[%clk 0:00:44]}  Rg8 {[%clk 0:00:41]} 29. Qh5 {[%clk 0:00:44]}  Bxf5 {[%clk 0:00:39]} 30. Rxf5 {[%clk 0:00:41]}  Rg6 {[%clk 0:00:38]} 31. Bf4 {[%clk 0:00:30]}  Qe6 {[%clk 0:00:36]} 32. Rxf6 {[%clk 0:00:25]}  Qe4+ {[%clk 0:00:31]} 0-1


[Site "https://www.chess.com"]

[Event "Titled Tuesday Blitz May 23 Late 2023"]
[White "Gatterer, Florian"]
[Black "Kostiukov, Alexandr"]
[WhiteFideId "811688"]
[BlackFideId "14108100"]
[WhiteElo "2221"]
[BlackElo "2202"]
[Result "1/2-1/2"]
[Round "11"]
[TimeControl "180+2"]
[Date "2023.05.23"]
[WhiteClock "0:01:56"]
[BlackClock "0:02:34"]

1. e4 {[%clk 0:03:00]}  c5 {[%clk 0:02:56]} 2. Nf3 {[%clk 0:02:58]}  g6 {[%clk 0:02:56]} 3. c4 {[%clk 0:02:57]}  Bg7 {[%clk 0:02:56]} 4. d4 {[%clk 0:02:58]}  cxd4 {[%clk 0:02:56]} 5. Nxd4 {[%clk 0:02:57]}  Nc6 {[%clk 0:02:55]} 6. Be3 {[%clk 0:02:56]}  Qa5+ {[%clk 0:02:53]} 7. Nc3 {[%clk 0:02:40]}  Nxd4 {[%clk 0:02:53]} 8. Bxd4 {[%clk 0:02:40]}  Nf6 {[%clk 0:02:54]} 9. f3 {[%clk 0:02:30]}  O-O {[%clk 0:02:52]} 10. Qd2 {[%clk 0:02:26]}  d6 {[%clk 0:02:52]} 11. Be2 {[%clk 0:02:25]}  Be6 {[%clk 0:02:52]} 12. Be3 {[%clk 0:02:11]}  Rfc8 {[%clk 0:02:51]} 13. Nd5 {[%clk 0:01:59]}  Qxd2+ {[%clk 0:02:34]} 14. Kxd2 {[%clk 0:01:56]} 1/2-1/2


[Site "https://www.chess.com"]

[Event "Titled Tuesday Blitz May 23 Late 2023"]
[White "Clawitter, Craig"]
[Black "Vaglio Munoz, Jaime"]
[WhiteFideId "2023105"]
[BlackFideId "6500145"]
[WhiteElo "2244"]
[BlackElo "2199"]
[Result "0-1"]
[Round "11"]
[TimeControl "180+2"]
[Date "2023.05.23"]
[WhiteClock "0:00:00"]
[BlackClock "0:01:28"]

1. e4 {[%clk 0:02:57]}  c5 {[%clk 0:02:59]} 2. Nf3 {[%clk 0:02:57]}  Qa5 {[%clk 0:02:59]} 3. Nc3 {[%clk 0:02:45]}  a6 {[%clk 0:02:58]} 4. d4 {[%clk 0:02:42]}  b5 {[%clk 0:02:54]} 5. dxc5 {[%clk 0:02:36]}  e6 {[%clk 0:02:52]} 6. Bd2 {[%clk 0:02:26]}  b4 {[%clk 0:02:53]} 7. Ne2 {[%clk 0:02:12]}  Bxc5 {[%clk 0:02:52]} 8. Ned4 {[%clk 0:01:47]}  Qb6 {[%clk 0:02:51]} 9. Be3 {[%clk 0:01:48]}  Bb7 {[%clk 0:02:50]} 10. Bd3 {[%clk 0:01:41]}  Nf6 {[%clk 0:02:49]} 11. O-O {[%clk 0:01:31]}  Nxe4 {[%clk 0:02:46]} 12. Ne5 {[%clk 0:01:14]}  Nf6 {[%clk 0:02:40]} 13. Nc4 {[%clk 0:01:05]}  Qc7 {[%clk 0:02:39]} 14. Qe2 {[%clk 0:00:48]}  d5 {[%clk 0:02:30]} 15. Nd2 {[%clk 0:00:46]}  Qb6 {[%clk 0:02:20]} 16. N2b3 {[%clk 0:00:46]}  Bxd4 {[%clk 0:02:09]} 17. Bxd4 {[%clk 0:00:46]}  Qd8 {[%clk 0:02:08]} 18. Nc5 {[%clk 0:00:42]}  Bc8 {[%clk 0:02:06]} 19. f4 {[%clk 0:00:21]}  Nc6 {[%clk 0:02:05]} 20. Bxf6 {[%clk 0:00:17]}  Qxf6 {[%clk 0:02:04]} 21. Kh1 {[%clk 0:00:16]}  O-O {[%clk 0:02:03]} 22. f5 {[%clk 0:00:16]}  e5 {[%clk 0:02:02]} 23. g4 {[%clk 0:00:15]}  e4 {[%clk 0:02:01]} 24. g5 {[%clk 0:00:15]}  Qxb2 {[%clk 0:02:00]} 25. f6 {[%clk 0:00:13]}  exd3 {[%clk 0:01:57]} 26. Qxd3 {[%clk 0:00:08]}  Qd4 {[%clk 0:01:51]} 27. Qg3 {[%clk 0:00:02]}  Qg4 {[%clk 0:01:48]} 28. fxg7 {[%clk 0:00:03]}  Kxg7 {[%clk 0:01:41]} 29. Qd6 {[%clk 0:00:00]}  Nd4 {[%clk 0:01:28]} 0-1


[Site "https://www.chess.com"]

[Event "Titled Tuesday Blitz May 23 Late 2023"]
[White "Torres Dominguez, David"]
[Black "Lalanne, Pablo"]
[WhiteFideId "2220857"]
[BlackFideId "112151"]
[WhiteElo "1999"]
[BlackElo "2120"]
[Result "0-1"]
[Round "11"]
[TimeControl "180+2"]
[Date "2023.05.23"]
[WhiteClock "0:00:00"]
[BlackClock "0:00:04"]

1. e4 {[%clk 0:02:58]}  c5 {[%clk 0:02:58]} 2. Nc3 {[%clk 0:02:58]}  Nc6 {[%clk 0:02:58]} 3. Bb5 {[%clk 0:02:59]}  Nd4 {[%clk 0:02:56]} 4. Bc4 {[%clk 0:02:58]}  e6 {[%clk 0:02:55]} 5. Nge2 {[%clk 0:02:58]}  Ne7 {[%clk 0:02:54]} 6. O-O {[%clk 0:02:58]}  d5 {[%clk 0:02:53]} 7. exd5 {[%clk 0:02:59]}  exd5 {[%clk 0:02:53]} 8. Nxd5 {[%clk 0:02:53]}  Nxd5 {[%clk 0:02:50]} 9. Nxd4 {[%clk 0:02:53]}  cxd4 {[%clk 0:02:40]} 10. Qh5 {[%clk 0:02:53]}  Be6 {[%clk 0:01:34]} 11. Re1 {[%clk 0:02:53]}  Be7 {[%clk 0:01:34]} 12. Rxe6 {[%clk 0:02:51]}  O-O {[%clk 0:01:27]} 13. Bxd5 {[%clk 0:02:49]}  fxe6 {[%clk 0:01:25]} 14. Bxe6+ {[%clk 0:02:45]}  Kh8 {[%clk 0:01:26]} 15. Bf5 {[%clk 0:02:44]}  h6 {[%clk 0:00:53]} 16. Qg6 {[%clk 0:02:43]}  Kg8 {[%clk 0:00:54]} 17. Be6+ {[%clk 0:02:16]}  Kh8 {[%clk 0:00:54]} 18. Bf5 {[%clk 0:01:56]}  Kg8 {[%clk 0:00:53]} 19. d3 {[%clk 0:01:57]}  Rf6 {[%clk 0:00:35]} 20. Qg4 {[%clk 0:01:56]}  Qc7 {[%clk 0:00:20]} 21. Bf4 {[%clk 0:01:44]}  Qxc2 {[%clk 0:00:20]} 22. Re1 {[%clk 0:01:07]}  Raf8 {[%clk 0:00:14]} 23. Be5 {[%clk 0:01:01]}  R6f7 {[%clk 0:00:10]} 24. Bxd4 {[%clk 0:00:46]}  Bf6 {[%clk 0:00:08]} 25. Be6 {[%clk 0:00:37]}  Qd2 {[%clk 0:00:06]} 26. Rd1 {[%clk 0:00:23]}  Qg5 {[%clk 0:00:05]} 27. Qxg5 {[%clk 0:00:23]}  hxg5 {[%clk 0:00:05]} 28. Bxf6 {[%clk 0:00:22]}  gxf6 {[%clk 0:00:05]} 29. Rc1 {[%clk 0:00:20]}  Kg7 {[%clk 0:00:05]} 30. Bxf7 {[%clk 0:00:20]}  Rxf7 {[%clk 0:00:05]} 31. f3 {[%clk 0:00:21]}  Rd7 {[%clk 0:00:06]} 32. Rc3 {[%clk 0:00:21]}  Kf7 {[%clk 0:00:05]} 33. Kf2 {[%clk 0:00:21]}  Ke6 {[%clk 0:00:06]} 34. Ke3 {[%clk 0:00:21]}  Kd5 {[%clk 0:00:04]} 35. d4 {[%clk 0:00:20]}  f5 {[%clk 0:00:04]} 36. h3 {[%clk 0:00:20]}  Re7+ {[%clk 0:00:05]} 37. Kd3 {[%clk 0:00:20]}  b6 {[%clk 0:00:02]} 38. Rc2 {[%clk 0:00:19]}  f4 {[%clk 0:00:02]} 39. a3 {[%clk 0:00:18]}  Re3+ {[%clk 0:00:02]} 40. Kd2 {[%clk 0:00:15]}  Kxd4 {[%clk 0:00:02]} 41. Rc8 {[%clk 0:00:13]}  Rd3+ {[%clk 0:00:03]} 42. Ke2 {[%clk 0:00:13]}  Re3+ {[%clk 0:00:03]} 43. Kd2 {[%clk 0:00:12]}  Rb3 {[%clk 0:00:04]} 44. Rd8+ {[%clk 0:00:10]}  Kc4 {[%clk 0:00:05]} 45. Kc2 {[%clk 0:00:10]}  Re3 {[%clk 0:00:04]} 46. Rc8+ {[%clk 0:00:09]}  Kd5 {[%clk 0:00:04]} 47. Kd2 {[%clk 0:00:09]}  b5 {[%clk 0:00:03]} 48. Rd8+ {[%clk 0:00:09]}  Kc5 {[%clk 0:00:04]} 49. Rg8 {[%clk 0:00:08]}  Re5 {[%clk 0:00:03]} 50. Rf8 {[%clk 0:00:07]}  Rd5+ {[%clk 0:00:03]} 51. Kc2 {[%clk 0:00:07]}  a5 {[%clk 0:00:04]} 52. h4 {[%clk 0:00:06]}  gxh4 {[%clk 0:00:04]} 53. Rxf4 {[%clk 0:00:07]}  Rg5 {[%clk 0:00:04]} 54. Rg4 {[%clk 0:00:06]}  Rh5 {[%clk 0:00:03]} 55. f4 {[%clk 0:00:06]}  h3 {[%clk 0:00:04]} 56. gxh3 {[%clk 0:00:04]}  Rxh3 {[%clk 0:00:04]} 57. Rg5+ {[%clk 0:00:01]}  Kc4 {[%clk 0:00:04]} 58. Rg2 {[%clk 0:00:00]}  Rf3 {[%clk 0:00:04]} 0-1


[Site "https://www.chess.com"]

[Event "Titled Tuesday Blitz May 23 Late 2023"]
[White "Alimpic, Aleksa"]
[Black "Thiel, Thomas"]
[WhiteFideId "974323"]
[BlackFideId "4615964"]
[WhiteElo "2298"]
[BlackElo "2222"]
[Result "1-0"]
[Round "11"]
[TimeControl "180+2"]
[Date "2023.05.23"]
[WhiteClock "0:00:15"]
[BlackClock "0:00:02"]

1. Nf3 {[%clk 0:02:58]}  Nf6 {[%clk 0:02:57]} 2. g3 {[%clk 0:02:59]}  g6 {[%clk 0:02:57]} 3. b3 {[%clk 0:02:59]}  Bg7 {[%clk 0:02:53]} 4. Bb2 {[%clk 0:03:00]}  O-O {[%clk 0:02:51]} 5. Bg2 {[%clk 0:03:00]}  d6 {[%clk 0:02:51]} 6. d4 {[%clk 0:03:00]}  Nbd7 {[%clk 0:02:50]} 7. O-O {[%clk 0:03:00]}  c6 {[%clk 0:02:47]} 8. c4 {[%clk 0:02:57]}  e5 {[%clk 0:02:44]} 9. dxe5 {[%clk 0:02:53]}  dxe5 {[%clk 0:02:41]} 10. Nxe5 {[%clk 0:02:39]}  Ng4 {[%clk 0:02:38]} 11. Nd3 {[%clk 0:02:37]}  Nde5 {[%clk 0:02:30]} 12. Nxe5 {[%clk 0:02:29]}  Nxe5 {[%clk 0:02:29]} 13. Qxd8 {[%clk 0:02:17]}  Rxd8 {[%clk 0:02:30]} 14. Nc3 {[%clk 0:02:01]}  Rd2 {[%clk 0:02:27]} 15. Rab1 {[%clk 0:01:45]}  Bf5 {[%clk 0:02:07]} 16. e4 {[%clk 0:01:44]}  Be6 {[%clk 0:02:03]} 17. Ba1 {[%clk 0:01:27]}  Rad8 {[%clk 0:01:51]} 18. Rbd1 {[%clk 0:01:22]}  Bg4 {[%clk 0:01:39]} 19. Rxd2 {[%clk 0:01:06]}  Rxd2 {[%clk 0:01:40]} 20. f3 {[%clk 0:01:05]}  Be6 {[%clk 0:01:35]} 21. Rf2 {[%clk 0:00:34]}  Rd8 {[%clk 0:01:24]} 22. Kf1 {[%clk 0:00:34]}  Nd3 {[%clk 0:01:20]} 23. Rd2 {[%clk 0:00:31]}  b5 {[%clk 0:01:18]} 24. cxb5 {[%clk 0:00:28]}  cxb5 {[%clk 0:01:19]} 25. Ke2 {[%clk 0:00:26]}  Nc1+ {[%clk 0:01:12]} 26. Kd1 {[%clk 0:00:23]}  Nd3 {[%clk 0:01:12]} 27. Bf1 {[%clk 0:00:16]}  b4 {[%clk 0:00:50]} 28. Rxd3 {[%clk 0:00:15]}  Re8 {[%clk 0:00:19]} 29. Kc2 {[%clk 0:00:14]}  bxc3 {[%clk 0:00:18]} 30. Bxc3 {[%clk 0:00:15]}  Rc8 {[%clk 0:00:02]} 31. Kb2 {[%clk 0:00:15]} 1-0


[Site "https://www.chess.com"]

[Event "Titled Tuesday Blitz May 23 Late 2023"]
[White "Roman, Rodrigo"]
[Black "Kovacevic, Radmila"]
[WhiteFideId "3701220"]
[BlackFideId "933171"]
[WhiteElo "1995"]
[BlackElo "2194"]
[Result "1-0"]
[Round "11"]
[TimeControl "180+2"]
[Date "2023.05.23"]
[WhiteClock "0:00:57"]
[BlackClock "0:00:00"]

1. e4 {[%clk 0:02:57]}  e5 {[%clk 0:02:58]} 2. f4 {[%clk 0:02:55]}  exf4 {[%clk 0:02:58]} 3. Bc4 {[%clk 0:02:55]}  Qh4+ {[%clk 0:02:56]} 4. Kf1 {[%clk 0:02:55]}  d5 {[%clk 0:02:56]} 5. Bxd5 {[%clk 0:02:54]}  c6 {[%clk 0:02:53]} 6. Bb3 {[%clk 0:02:54]}  Bd6 {[%clk 0:02:52]} 7. Nf3 {[%clk 0:02:54]}  Qh6 {[%clk 0:02:51]} 8. d4 {[%clk 0:02:51]}  g5 {[%clk 0:02:51]} 9. e5 {[%clk 0:02:43]}  Bc7 {[%clk 0:02:45]} 10. h4 {[%clk 0:02:42]}  g4 {[%clk 0:02:39]} 11. Ng5 {[%clk 0:02:42]}  f6 {[%clk 0:02:38]} 12. Nf7 {[%clk 0:02:40]}  Qh5 {[%clk 0:02:29]} 13. Nxh8 {[%clk 0:02:38]}  fxe5 {[%clk 0:02:28]} 14. Bf7+ {[%clk 0:02:37]}  Qxf7 {[%clk 0:02:25]} 15. Nxf7 {[%clk 0:02:38]}  Kxf7 {[%clk 0:02:22]} 16. dxe5 {[%clk 0:02:31]}  Bxe5 {[%clk 0:02:23]} 17. Qd8 {[%clk 0:02:30]}  Be6 {[%clk 0:02:13]} 18. Nd2 {[%clk 0:02:23]}  h6 {[%clk 0:01:57]} 19. Kf2 {[%clk 0:02:21]}  g3+ {[%clk 0:01:43]} 20. Ke2 {[%clk 0:02:08]}  Bf6 {[%clk 0:01:29]} 21. Qc7+ {[%clk 0:01:57]}  Nd7 {[%clk 0:01:29]} 22. Qxf4 {[%clk 0:01:52]}  Re8 {[%clk 0:01:25]} 23. Kd1 {[%clk 0:01:39]}  Ne5 {[%clk 0:01:16]} 24. Ne4 {[%clk 0:01:38]}  Ng4 {[%clk 0:01:05]} 25. Qf3 {[%clk 0:01:37]}  Nf2+ {[%clk 0:00:50]} 26. Nxf2 {[%clk 0:01:36]}  gxf2 {[%clk 0:00:48]} 27. Rf1 {[%clk 0:01:28]}  Bd5 {[%clk 0:00:23]} 28. Qxf2 {[%clk 0:01:28]}  Rd8 {[%clk 0:00:18]} 29. Bd2 {[%clk 0:01:20]}  Kg7 {[%clk 0:00:17]} 30. Kc1 {[%clk 0:01:11]}  Bc4 {[%clk 0:00:15]} 31. Rd1 {[%clk 0:01:09]}  Bd5 {[%clk 0:00:12]} 32. Bc3 {[%clk 0:01:06]}  Re8 {[%clk 0:00:10]} 33. Bxf6+ {[%clk 0:01:05]}  Nxf6 {[%clk 0:00:11]} 34. Qd4 {[%clk 0:01:01]}  Kg6 {[%clk 0:00:10]} 35. c4 {[%clk 0:00:58]}  Bxg2 {[%clk 0:00:00]} 36. Rg1 {[%clk 0:00:57]} 1-0


[Site "https://www.chess.com"]